bitfinex-derivatives/quotes_SOLF0:USTF0_20250929
["timestamp","ask_amount","ask_price","bid_price","bid_amount"]
[1759189524276,3.36289558,212.75,212.73,7.54]
[1759189524481,7.53,212.76,212.73,7.54]
[1759189524671,3.36279363,212.75,212.73,7.54]
[1759189524977,7.53,212.76,212.73,7.54]
[1759189525171,3.36279239,212.75,212.73,7.54]
[1759189525473,113.66,212.8,212.75,7.53]
[1759189525671,7.76,212.78,212.75,7.53]
[1759189525876,3.36281209,212.77,212.74,4.2276]
[1759189526083,3.36281209,212.76,212.75,7.53]
[1759189528870,3.36194166,212.8,212.75,7.53]
[1759189529073,7.76,212.81,212.72,65.7695]
[1759189529074,3.36194166,212.79,212.72,65.7695]
[1759189529273,3.36194166,212.78,212.73,7.53]
[1759189529474,3.36194166,212.77,212.73,7.53]
[1759189529670,7.76,212.81,212.73,7.53]
[1759189529976,3.36142044,212.8,212.73,7.53]
[1759189530169,3.36142044,212.79,212.73,7.53]
[1759189530370,3.36142044,212.78,212.73,7.53]
[1759189530578,4.2257,212.84,212.77,4.2268]
[1759189530780,11.11982482,212.83,212.77,4.2268]
[1759189530981,3.35982482,212.82,212.77,11.7568]
[1759189531281,7.76,212.8,212.77,11.7568]
[1759189531482,3.35982482,212.79,212.77,11.7568]
[1759189531683,3.35982482,212.78,212.77,11.7568]
[1759189535176,3.35982482,212.81,212.77,4.2268]
[1759189535375,3.35982482,212.8,212.78,7.53]
[1759189535582,3.35982482,212.79,212.78,7.53]
[1759189535779,11.11982482,212.81,212.78,7.53]
[1759189535984,11.11982482,212.8,212.78,7.53]
[1759189536175,7.76,212.83,212.77,11.7568]
[1759189536380,3.35704113,212.82,212.77,4.2268]
[1759189536675,11.11704113,212.81,212.78,7.53]
[1759189536878,3.35704113,212.8,212.78,7.53]
[1759189537082,7.76,212.81,212.78,7.53]
[1759189537384,3.35652511,212.8,212.78,7.53]
[1759189537583,7.76,212.81,212.78,7.53]
[1759189537782,3.35627744,212.8,212.78,7.53]
[1759189537984,7.76,212.83,212.78,7.53]
[1759189538184,7.76,212.81,212.78,7.53]
[1759189538380,3.35632699,212.8,212.78,7.53]
[1759189538580,11.11632699,212.79,212.73,7.53]
[1759189538782,3.35632699,212.78,212.68,68.45544165]
[1759189538984,7.76,212.78,212.69,7.53]
[1759189539388,7.76,212.8,212.73,7.53]
[1759189539588,3.3558105,212.79,212.73,7.53]
[1759189539883,4.2263,212.81,212.75,4.2273]
[1759189540188,7.76,212.79,212.76,7.53]
[1759189540890,7.76,212.79,212.76,11.7571]
[1759189541085,7.76,212.79,212.73,7.53]
[1759189543391,7.76,212.79,212.77,4.2269]
[1759189543689,11.9861,212.82,212.74,7.53]
[1759189543887,7.76,212.8,212.74,7.53]
[1759189544190,3.35523659,212.79,212.71,7.53]
[1759189544690,7.76,212.78,212.76,11.7571]
[1759189545888,7.76,212.83,212.76,4.2271]
[1759189546187,3.3552794,212.82,212.76,4.2271]
[1759189546383,7.76,212.8,212.76,11.7571]
[1759189546690,11.1152794,212.79,212.76,11.7571]
[1759189546890,7.76,212.79,212.76,11.7571]
[1759189548189,7.76,212.81,212.76,11.7571]
[1759189548386,7.76,212.79,212.76,11.7571]
[1759189549187,3.35892172,212.78,212.76,11.7571]
[1759189550191,117.8457,212.84,212.78,4.2268]
[1759189550490,3.36003317,212.83,212.78,11.7568]
[1759189550685,7.76,212.81,212.76,4.2272]
[1759189550887,7.76,212.79,212.77,7.53]
[1759189551290,7.76,212.82,212.76,4.2272]
[1759189551490,3.36150136,212.81,212.76,11.7572]
[1759189551790,7.76,212.79,212.76,11.7572]
[1759189551986,3.36150136,212.78,212.76,11.7572]
[1759189552187,7.76,212.82,212.76,4.2272]
[1759189552391,3.36298802,212.81,212.76,4.2272]
[1759189552592,7.76,212.79,212.76,11.7572]
[1759189552793,3.36298802,212.78,212.77,7.53]
[1759189554795,7.9,212.82,212.74,7.51]
[1759189554998,3.36367117,212.81,212.74,7.51]
[1759189555200,3.36367117,212.8,212.74,7.51]
[1759189555497,3.36367117,212.79,212.74,7.51]
[1759189555698,7.9,212.82,212.74,7.51]
[1759189555894,3.36367939,212.81,212.74,7.51]
[1759189556102,3.36367939,212.8,212.79,11.7365]
[1759189560600,3.36367939,212.8,212.79,7.51]
[1759189564005,7.9,212.86,212.8,4.2264]
[1759189564311,11.2749076,212.85,212.8,4.2264]
[1759189564511,11.2749076,212.84,212.81,7.51]
[1759189564704,3.3749076,212.83,212.81,7.51]
[1759189564905,3.3749076,212.82,212.81,7.51]
[1759189567215,11.2749076,212.82,212.79,7.51]
[1759189567509,3.3749076,212.81,212.78,5.93559415]
[1759189567814,7.9,212.82,212.8,7.51]
[1759189568014,3.37493124,212.81,212.8,7.51]
[1759189572911,11.27493124,212.81,212.79,11.7365]
[1759189573218,7.9,212.81,212.79,11.7365]
[1759189573719,7.9,212.86,212.8,4.2263]
[1759189573919,7.9,212.84,212.8,11.7363]
[1759189574116,11.2752856,212.83,212.81,7.51]
[1759189574317,3.3752856,212.82,212.81,7.51]
[1759189576716,3.3752856,212.82,212.81,9.21889415]
[1759189578117,3.3752856,212.82,212.81,23.18777549]
[1759189579326,8.56e-05,212.82,212.81,23.64777549]
[1759189579617,7.98,212.9,212.82,7.85]
[1759189579824,7.98,212.9,212.81,81.87857549]
[1759189579825,7.98,212.93,212.86,1.70889415]
[1759189580721,7.98,212.93,212.87,4.225]
[1759189587732,7.98,212.93,212.88,4.2247]
[1759189588432,7.56,212.93,212.88,4.2247]
[1759189588830,5.93259415,212.94,212.88,11.5447]
[1759189589930,1.70889415,212.94,212.88,4.2247]
[1759189590124,7.56,212.95,212.89,4.2245]
[1759189590333,7.56,212.95,212.89,11.5445]
[1759189590532,124.72964226,212.96,212.89,11.5445]
[1759189590735,7.56,212.94,212.86,9.02889415]
[1759189591530,7.56,212.92,212.86,9.02889415]
[1759189591734,10.84712802,212.91,212.88,7.32]
[1759189592031,3.28712802,212.9,212.88,7.32]
[1759189593428,3.28712802,212.9,212.87,4.2249]
[1759189593634,3.28712802,212.92,212.87,4.2249]
[1759189593833,3.28712802,212.91,212.88,7.32]
[1759189594034,3.28712802,212.9,212.87,4.2249]
[1759189594229,3.28712802,212.93,212.88,7.32]
[1759189594434,10.84712802,212.92,212.88,4.2247]
[1759189594632,3.28712802,212.91,212.89,7.32]
[1759189594837,3.28712802,212.9,212.89,7.32]
[1759189595034,3.28712802,212.91,212.88,4.2247]
[1759189595231,3.28712802,212.9,212.89,7.32]
[1759189595431,3.28712802,212.91,212.88,4.2247]
[1759189595626,3.28712802,212.9,212.89,7.32]
[1759189595830,3.28712802,212.91,212.88,5.93359415]
[1759189596026,3.28712802,212.9,212.89,7.32]
[1759189596226,3.28712802,212.91,212.88,5.93359415]
[1759189596430,3.28712802,212.9,212.89,7.32]
[1759189596733,3.28712802,212.91,212.89,7.32]
[1759189596933,3.28712802,212.9,212.89,7.32]
[1759189597134,3.28712802,212.94,212.89,1.70889415]
[1759189597335,3.28712802,212.93,212.89,1.70889415]
[1759189597538,3.28712802,212.92,212.89,1.70889415]
[1759189597739,3.28712802,212.91,212.9,11.5444]
[1759189599742,3.28712802,212.94,212.9,11.5444]
[1759189599940,3.28712802,212.93,212.91,7.32]
[1759189600134,3.28712802,212.92,212.91,7.32]
[1759189600330,3.28712802,212.94,212.91,7.32]
[1759189600534,10.84712802,212.94,212.91,7.32]
[1759189600736,7.56,212.94,212.9,4.2244]
[1759189600938,1.70889415,212.98,212.88,11.5447]
[1759189601138,7.56,212.96,212.89,1.70889415]
[1759189601338,1.70889415,212.98,212.89,1.70889415]
[1759189601339,3.28543885,212.95,212.89,1.70889415]
[1759189601532,3.28543885,212.94,212.89,9.02889415]
[1759189601738,7.56,212.96,212.89,9.02889415]
[1759189602037,3.28543885,212.95,212.89,1.70889415]
[1759189602339,7.56,212.93,212.89,1.70889415]
[1759189602544,1.70889415,212.98,212.89,9.02889415]
[1759189602545,4.2234,212.96,212.89,9.02889415]
[1759189602741,3.28451326,212.95,212.89,9.02889415]
[1759189602936,3.28451326,212.94,212.89,9.02889415]
[1759189603141,3.28451326,212.95,212.89,9.02889415]
[1759189603342,7.56,212.93,212.89,9.02889415]
[1759189603543,7.56,212.95,212.89,9.02889415]
[1759189603739,7.56,212.93,212.9,7.32]
[1759189604044,7.56,212.95,212.9,7.32]
[1759189604240,3.28423888,212.94,212.9,7.32]
[1759189604443,7.56,212.94,212.9,7.32]
[1759189604645,7.56,212.95,212.9,7.32]
[1759189604842,3.28407531,212.94,212.9,7.32]
[1759189605043,3.28407531,212.95,212.9,7.32]
[1759189605243,7.56,212.93,212.9,7.32]
[1759189605542,4.2234,212.96,212.9,7.32]
[1759189605738,7.56,212.94,212.9,7.32]
[1759189605942,7.56,212.95,212.89,9.02889415]
[1759189606144,10.84377469,212.94,212.9,7.32]
[1759189606342,7.56,212.95,212.89,9.02889415]
[1759189606646,7.56,212.93,212.9,7.32]
[1759189606847,7.56,212.93,212.89,1.70889415]
[1759189607051,7.56,212.93,212.9,7.32]
[1759189607247,4.2234,212.96,212.9,7.32]
[1759189607445,7.56,212.94,212.9,7.32]
[1759189607645,4.2234,212.96,212.9,7.32]
[1759189607945,7.56,212.94,212.89,1.70889415]
[1759189608136,3.28388196,212.95,212.89,1.70889415]
[1759189608137,7.56,212.95,212.9,7.32]
[1759189608341,10.84413023,212.94,212.89,1.70889415]
[1759189608540,7.56,212.95,212.89,1.70889415]
[1759189608845,10.84427948,212.94,212.89,1.70889415]
[1759189609046,7.56,212.94,212.89,1.70889415]
[1759189609447,7.56,212.94,212.9,7.32]
[1759189609648,7.56,212.94,212.91,7.32]
[1759189611052,11.7832,212.97,212.91,7.32]
[1759189611248,7.56,212.95,212.91,7.32]
[1759189611441,10.84409905,212.94,212.91,7.32]
[1759189611646,7.56,212.97,212.91,7.32]
[1759189611851,7.56,212.95,212.91,7.32]
[1759189612048,7.56,212.93,212.91,7.32]
[1759189614657,4.2234,212.96,212.86,7.61]
[1759189614658,7.27,212.95,212.86,7.61]
[1759189614864,7.27,212.93,212.86,7.61]
[1759189615063,7.27,212.91,212.86,7.61]
[1759189615252,7.27,212.95,212.86,7.61]
[1759189615457,11.494,212.93,212.86,11.8352]
[1759189615760,7.27,212.91,212.86,11.8352]
[1759189615963,4.224,212.93,212.86,4.2252]
[1759189616165,10.55422772,212.92,212.86,11.8352]
[1759189616362,7.27,212.92,212.86,11.8352]
[1759189619263,3.28654046,212.91,212.86,11.8352]
[1759189619467,7.27,212.9,212.87,7.61]
[1759189620969,7.27,212.9,212.86,4.2252]
[1759189621370,7.27,212.9,212.87,7.61]
[1759189621761,7.27,212.9,212.86,4.2252]
[1759189622265,7.27,212.9,212.87,7.61]
[1759189623170,7.27,212.91,212.87,7.61]
[1759189623672,1.70889415,212.93,212.84,13.54439415]
[1759189623873,7.27,212.91,212.84,13.54439415]
[1759189624068,1.70889415,212.93,212.84,13.54439415]
[1759189624267,7.27,212.91,212.84,13.54439415]
[1759189624474,3.28989498,212.9,212.84,13.54439415]
[1759189624770,7.27,212.91,212.84,13.54439415]
[1759189624771,11.4943,212.91,212.84,13.54439415]
[1759189624972,3.29091623,212.9,212.84,13.54439415]
[1759189625172,11.4943,212.91,212.84,13.54439415]
[1759189625372,3.29103088,212.9,212.84,13.54439415]
[1759189625673,11.4943,212.91,212.84,13.54439415]
[1759189625869,3.29113409,212.9,212.84,13.54439415]
[1759189626063,11.4943,212.91,212.84,13.54439415]
[1759189626268,3.29113644,212.9,212.84,11.8355]
[1759189626470,11.4943,212.91,212.84,11.8355]
[1759189626670,4.2247,212.89,212.84,7.61]
[1759189626871,10.56112674,212.88,212.82,4.226]
[1759189627173,7.27,212.86,212.83,7.61]
[1759189627368,4.2247,212.89,212.83,7.61]
[1759189627567,3.29116392,212.88,212.83,7.61]
[1759189627768,7.27,212.86,212.83,7.61]
[1759189628268,7.27,212.88,212.83,7.61]
[1759189628476,7.27,212.86,212.83,7.61]
[1759189630671,7.27,212.86,212.83,4.2257]
[1759189630977,7.27,212.9,212.82,7.61]
[1759189631181,3.29251213,212.89,212.82,7.61]
[1759189631372,3.29251213,212.88,212.82,7.61]
[1759189631572,3.29251213,212.87,212.82,7.61]
[1759189631772,7.27,212.9,212.82,7.61]
[1759189631976,3.29258812,212.89,212.82,7.61]
[1759189632274,3.29258812,212.88,212.82,7.61]
[1759189632475,3.29258812,212.87,212.82,7.61]
[1759189632667,11.4945,212.9,212.84,11.8355]
[1759189632872,7.27,212.88,212.85,7.61]
[1759189633075,3.29265883,212.87,212.85,7.61]
[1759189633374,7.27,212.88,212.82,11.836]
[1759189633575,7.27,212.86,212.83,7.61]
[1759189633979,7.27,212.86,212.82,4.226]
[1759189634177,7.27,212.86,212.83,7.61]
[1759189634374,7.27,212.86,212.82,4.226]
[1759189634970,7.27,212.86,212.83,7.35]
[1759189635176,7.79,212.88,212.83,7.35]
[1759189635378,7.79,212.86,212.83,7.35]
[1759189638684,12.0154,212.86,212.8,11.5763]
[1759189638878,3.29286831,212.85,212.81,7.35]
[1759189639085,11.08286831,212.84,212.81,7.35]
[1759189639285,7.79,212.84,212.81,7.35]
[1759189640079,7.79,212.84,212.8,4.2263]
[1759189641189,7.79,212.84,212.81,7.35]
[1759189641984,7.79,212.84,212.8,4.2263]
[1759189642387,7.79,212.84,212.81,7.35]
[1759189643089,7.79,212.84,212.8,4.2263]
[1759189643389,7.79,212.84,212.81,7.35]
[1759189645290,7.79,212.84,212.81,7.87]
[1759189651199,4.2254,212.86,212.81,7.87]
[1759189651394,7.86,212.84,212.81,7.87]
[1759189653798,4.2254,212.86,212.81,7.87]
[1759189653999,7.86,212.84,212.81,7.87]
[1759189654594,7.86,212.85,212.81,7.87]
[1759189654800,7.86,212.85,212.78,26.36763147]
[1759189655300,7.86,212.83,212.79,4.2266]
[1759189655492,7.86,212.85,212.79,12.0966]
[1759189655898,7.86,212.83,212.8,7.87]
[1759189656201,7.86,212.82,212.8,7.87]
[1759189659806,7.86,212.82,212.8,12.0963]
[1759189668815,7.86,212.87,212.81,12.0961]
[1759189669017,7.86,212.85,212.82,7.87]
[1759189669216,11.15234304,212.84,212.82,7.87]
[1759189669415,3.29234304,212.83,212.82,7.87]
[1759189671213,11.15234304,212.83,212.81,4.2261]
[1759189671418,7.86,212.86,212.81,4.2261]
[1759189671718,7.86,212.84,212.81,4.2261]
[1759189671914,11.15428575,212.83,212.81,4.2261]
[1759189672118,7.86,212.83,212.81,4.2261]
[1759189672322,3.29459518,212.82,212.81,12.0961]
[1759189674727,26.6,212.91,212.78,13.78859376]
[1759189674728,3.29526109,212.85,212.84,4.2256]
[1759189675425,3.29526109,212.85,212.84,12.1256]
[1759189681322,7.26,212.89,212.82,7.9]
[1759189681528,3.29165145,212.88,212.82,7.9]
[1759189681729,9.27852377,212.92,212.82,7.9]
[1759189681932,3.29237214,212.91,212.82,7.9]
[1759189682226,3.29237214,212.9,212.82,7.9]
[1759189682430,79.71646801,212.96,212.85,7.9]
[1759189682431,7.26,212.95,212.85,7.9]
[1759189682631,3.29105794,212.94,212.85,7.9]
[1759189682831,3.29105794,212.93,212.85,7.9]
[1759189683124,7.26,212.95,212.84,68.40111742]
[1759189683125,3.29105794,212.92,212.89,7.9]
[1759189683322,7.26,212.9,212.88,4.2247]
[1759189683520,7.26,212.9,212.88,12.1247]
[1759189684530,7.26,212.95,212.88,4.2247]
[1759189684827,79.71646801,212.96,212.84,2.66901742]
[1759189684828,7.26,212.93,212.86,7.9]
[1759189685030,3.2884724,212.92,212.86,7.9]
[1759189685232,7.26,212.93,212.86,7.9]
[1759189685735,7.26,212.93,212.91,7.9]
[1759189685933,4.2227,212.99,212.9,12.1243]
[1759189686232,7.26,212.97,212.91,4.2241]
[1759189686434,3.28728194,212.96,212.9,1.70725233]
[1759189686635,7.26,212.97,212.91,7.9]
[1759189686835,3.28601836,212.96,212.91,7.9]
[1759189687134,3.28449247,212.96,212.95,7.9]
[1759189687330,7.26,212.97,212.95,7.9]
[1759189687629,5.92955233,213.02,212.95,4.2233]
[1759189687830,10.54456166,213.01,212.95,12.1233]
[1759189688027,7.26,212.99,212.95,12.1233]
[1759189688229,10.54456166,212.98,212.95,12.1233]
[1759189688532,7.26,212.98,212.96,7.9]
[1759189689436,113.52,213.03,212.96,7.9]
[1759189689632,7.26,213.01,212.96,7.9]
[1759189689829,3.27997497,213.0,212.96,7.9]
[1759189690036,3.27997497,213.02,212.96,7.9]
[1759189690337,7.26,213.0,212.96,7.9]
[1759189690532,7.26,213.02,212.96,7.9]
[1759189690730,3.27773265,213.01,212.95,4.2233]
[1759189690930,7.26,213.01,212.95,12.1233]
[1759189691131,7.26,212.99,212.96,7.9]
[1759189692833,1.70725233,213.0,212.91,7.9]
[1759189693037,7.26,212.99,212.91,7.9]
[1759189696045,1.70725233,212.96,212.88,4.2248]
[1759189696338,7.92,212.95,212.88,4.2248]
[1759189697441,7.92,212.95,212.89,7.64]
[1759189702041,7.92,212.95,212.89,11.8645]
[1759189711850,4.2236,212.95,212.89,11.8645]
[1759189712056,7.67,212.94,212.89,11.8645]
[1759189712255,4.2236,212.95,212.89,4.2245]
[1759189712654,11.8936,212.95,212.89,11.5245]
[1759189719264,3.27029091,212.94,212.89,11.5245]
[1759189719467,10.94029091,212.94,212.9,7.3]
[1759189719660,7.67,212.94,212.89,4.2245]
[1759189719963,7.67,212.94,212.9,7.3]
[1759189720663,4.2236,212.95,212.9,7.3]
[1759189720867,3.27120104,212.94,212.9,7.3]
[1759189721269,7.67,212.93,212.9,7.3]
[1759189722365,4.2236,212.95,212.9,7.3]
[1759189722668,7.67,212.93,212.9,7.3]
[1759189722966,3.27339715,212.94,212.9,7.3]
[1759189722967,4.2236,212.95,212.9,7.3]
[1759189723168,7.67,212.93,212.9,7.3]
[1759189723361,7.67,212.94,212.9,7.3]
[1759189723563,7.67,212.92,212.9,7.3]
[1759189724572,1.70725233,212.97,212.88,1.70725233]
[1759189724573,7.67,212.96,212.88,1.70725233]
[1759189724868,4.98375954,212.95,212.87,11.525]
[1759189725073,7.67,212.93,212.87,11.525]
[1759189725366,7.67,212.91,212.88,7.3]
[1759189729074,3.27779894,212.9,212.86,7.3]
[1759189729269,7.67,212.88,212.86,7.3]
[1759189730474,7.67,212.89,212.83,11.5258]
[1759189730676,3.27660744,212.88,212.83,7.3]
[1759189730874,7.67,212.86,212.83,7.3]
[1759189732681,4.225,212.88,212.83,7.3]
[1759189732874,10.94537017,212.87,212.83,7.3]
[1759189733076,3.27505797,212.86,212.81,4.2261]
[1759189733277,7.67,212.85,212.82,7.3]
[1759189733681,4.2252,212.87,212.82,7.3]
[1759189733682,7.67,212.86,212.82,7.3]
[1759189733880,4.2252,212.87,212.82,7.3]
[1759189734183,7.85,212.85,212.82,7.3]
[1759189735181,4.2252,212.87,212.82,7.3]
[1759189735380,7.85,212.85,212.79,11.8466]
[1759189737485,7.85,212.86,212.8,4.2263]
[1759189743890,12.0753,212.86,212.8,4.2263]
[1759189744790,13.78255233,212.86,212.8,4.2263]
[1759189748085,7.85,212.84,212.79,7.62]
[1759189748493,4.2256,212.85,212.79,7.62]
[1759189748788,7.85,212.84,212.79,7.62]
[1759189748988,4.2256,212.85,212.79,7.62]
[1759189749188,4.2256,212.85,212.79,11.8465]
[1759189749589,7.85,212.84,212.79,11.8465]
[1759189750190,4.2256,212.85,212.79,11.8465]
[1759189750691,7.85,212.84,212.79,11.8465]
[1759189750892,4.2256,212.85,212.79,11.8465]
[1759189751080,7.85,212.84,212.81,4.2262]
[1759189751280,7.85,212.86,212.81,4.2262]
[1759189756292,4.2252,212.87,212.81,4.2262]
[1759189756489,7.69,212.86,212.81,4.2262]
[1759189756693,4.2252,212.87,212.81,4.2262]
[1759189756992,7.69,212.86,212.81,4.2262]
[1759189757691,4.2252,212.87,212.81,4.2262]
[1759189758184,7.69,212.86,212.81,4.2262]
[1759189758385,4.2252,212.87,212.81,4.2262]
[1759189758584,7.69,212.86,212.81,4.2262]
[1759189758987,4.2252,212.87,212.81,4.2262]
[1759189759184,7.69,212.86,212.81,4.2262]
[1759189759384,4.2252,212.87,212.81,11.8962]
[1759189759592,7.69,212.85,212.81,7.67]
[1759189759791,7.69,212.89,212.81,7.67]
[1759189759986,7.69,212.87,212.81,7.67]
[1759189760188,7.69,212.85,212.81,11.8961]
[1759189760497,7.69,212.86,212.81,11.8961]
[1759189760993,4.2252,212.87,212.81,11.8961]
[1759189761395,7.69,212.86,212.81,11.8961]
[1759189761595,4.2252,212.87,212.81,11.8961]
[1759189762298,7.48637561,212.87,212.81,11.8961]
[1759189762498,7.69,212.85,212.81,11.8961]
[1759189762698,4.2252,212.87,212.81,11.8961]
[1759189763599,7.48662445,212.87,212.81,11.8961]
[1759189763795,3.26142445,212.86,212.81,11.8961]
[1759189763993,4.2252,212.87,212.81,11.8961]
[1759189764296,3.26142445,212.86,212.81,11.8961]
[1759189764501,7.91,212.85,212.81,11.8961]
[1759189764685,4.2252,212.87,212.81,11.8961]
[1759189764892,3.26264703,212.86,212.81,11.8961]
[1759189765095,7.48794703,212.86,212.81,11.8961]
[1759189765303,7.91,212.84,212.81,11.8961]
[1759189768395,7.91,212.84,212.81,4.2261]
[1759189768598,7.91,212.84,212.82,7.32]
[1759189769501,12.1349,212.88,212.82,11.5459]
[1759189769800,3.2662751,212.87,212.83,7.32]
[1759189770000,7.91,212.85,212.83,7.32]
[1759189770399,59.22,212.9,212.8,4.2263]
[1759189770400,7.91,212.83,212.8,4.2263]
[1759189770600,7.91,212.83,212.8,11.5463]
[1759189771397,7.91,212.83,212.8,4.2263]
[1759189771702,7.91,212.83,212.81,7.32]
[1759189773198,12.1355,212.85,212.8,4.2263]
[1759189773398,3.27293709,212.84,212.81,7.32]
[1759189773703,3.27293709,212.83,212.8,4.2263]
[1759189774005,12.1355,212.85,212.8,4.2263]
[1759189774203,3.27305865,212.84,212.81,4.2262]
[1759189774497,3.27305865,212.83,212.82,7.32]
[1759189774798,2.67076438,212.91,212.86,7.32]
[1759189774799,7.91,212.91,212.86,7.32]
[1759189775000,3.27500826,212.9,212.83,7.32]
[1759189775205,3.27500826,212.89,212.83,7.32]
[1759189775502,2.02239834,212.92,212.83,7.32]
[1759189775703,3.27545871,212.91,212.83,7.32]
[1759189775996,3.27545871,212.9,212.83,7.32]
[1759189776202,2.02239834,212.92,212.83,7.32]
[1759189776402,3.27439604,212.91,212.83,7.32]
[1759189776597,3.27439604,212.91,212.82,68.40906438]
[1759189776598,3.27439604,212.9,212.86,4.2251]
[1759189776798,2.02239834,212.92,212.86,4.2251]
[1759189777000,11.18428161,212.91,212.87,7.32]
[1759189777199,11.18428161,212.91,212.86,4.2251]
[1759189777200,3.27428161,212.9,212.86,4.2251]
[1759189777503,7.91,212.91,212.87,7.32]
[1759189777705,11.18328868,212.9,212.87,7.32]
[1759189777906,7.91,212.9,212.87,7.32]
[1759189778206,7.91,212.9,212.86,4.2251]
[1759189778904,7.91,212.9,212.87,7.32]
[1759189779404,2.02239834,212.92,212.87,7.32]
[1759189779702,3.27011068,212.91,212.86,4.2251]
[1759189779904,9.93239834,212.92,212.88,7.32]
[1759189780100,3.27023344,212.91,212.87,4.2249]
[1759189780296,2.02239834,212.92,212.88,7.32]
[1759189780499,11.17942109,212.91,212.88,7.32]
[1759189780703,7.91,212.91,212.87,4.2249]
[1759189781304,7.91,212.91,212.88,7.32]
[1759189781904,9.93239834,212.92,212.88,7.32]
[1759189782203,3.26879704,212.91,212.87,4.2249]
[1759189782404,3.26879704,212.91,212.88,7.32]
[1759189782805,3.26879704,212.91,212.87,4.2249]
[1759189783206,7.91,212.91,212.87,4.2249]
[1759189783408,7.91,212.91,212.88,7.32]
[1759189783598,7.91,212.91,212.87,4.2249]
[1759189783801,7.91,212.91,212.88,7.32]
[1759189784203,7.91,212.91,212.87,4.2249]
[1759189784708,7.91,212.91,212.88,7.32]
[1759189784902,7.91,212.91,212.87,4.2249]
[1759189785206,7.91,212.91,212.88,7.32]
[1759189785510,7.91,212.91,212.87,4.2249]
[1759189785705,7.91,212.91,212.88,7.32]
[1759189786010,2.02239834,212.92,212.88,7.32]
[1759189786514,7.91,212.91,212.87,4.2249]
[1759189787010,7.91,212.91,212.88,7.32]
[1759189787316,7.91,212.91,212.87,4.2249]
[1759189787514,7.91,212.91,212.88,7.32]
[1759189788407,2.02239834,212.92,212.88,7.32]
[1759189788809,7.91,212.91,212.87,4.2249]
[1759189789214,7.91,212.91,212.88,7.32]
[1759189789408,7.91,212.91,212.87,4.2249]
[1759189790015,7.91,212.91,212.88,7.32]
[1759189790707,2.02239834,212.92,212.88,7.32]
[1759189791208,7.91,212.91,212.87,11.5449]
[1759189791712,2.02239834,212.92,212.87,11.5449]
[1759189792312,2.02239834,212.92,212.88,7.32]
[1759189792514,7.91,212.91,212.88,7.32]
[1759189795128,7.91,212.91,212.88,11.9147]
[1759189795328,2.02239834,212.92,212.88,11.9147]
[1759189795528,7.71,212.91,212.88,11.9147]
[1759189797324,7.71,212.91,212.88,4.2247]
[1759189797523,2.02239834,212.92,212.86,4.2251]
[1759189797730,7.71,212.91,212.86,11.9151]
[1759189797918,9.73239834,212.92,212.86,4.2251]
[1759189798227,2.02239834,212.92,212.87,4.2249]
[1759189798428,2.02239834,212.92,212.88,7.69]
[1759189798823,7.71,212.91,212.88,7.69]
[1759189800331,2.02239834,212.92,212.88,7.69]